lending/lending_fUSD_20250913
["ID","MTS","AMOUNT","RATE_DAILY","PERIOD"]
[385353889,1757790741438,-1836.39,0.00029041,2]
[385353890,1757790741448,-400.0,0.00029041,2]
[385353891,1757790741458,-806.89,0.00029041,2]
[385353892,1757790741467,-3209.32,0.00029041,2]
[385353893,1757790741481,-2346.72,0.00029041,2]
[385353894,1757790741491,-1118.88,0.00029041,2]
[385353895,1757790741501,-862.09,0.00029041,2]
[385353896,1757790741511,-400.0,0.00029041,2]
[385353897,1757790741520,-400.0,0.00029041,2]
[385353898,1757790741530,-1033.98,0.00029041,2]
[385353899,1757790741540,-400.0,0.00029041,2]
[385353900,1757790741551,-400.0,0.00029041,2]
[385353901,1757790741562,-702.99,0.00029041,2]
[385353902,1757790741572,-400.0,0.00029041,2]
[385353903,1757790741847,-1450.08,0.00029041,2]
[385353904,1757790741858,-896.46,0.00029041,2]
[385353905,1757790741869,-524.85,0.00029041,2]
[385353906,1757790741879,-837.65,0.00029041,2]
[385353907,1757790741888,-941.17,0.00029041,2]
[385353908,1757790741897,-872.8,0.00029041,2]
[385353909,1757790741907,-727.17,0.00029041,2]
[385353910,1757790741918,-711.83,0.00029041,2]
[385353911,1757790741927,-765.36,0.00029041,2]
[385353912,1757790741937,-400.0,0.00029041,2]
[385353913,1757790741946,-1000.0,0.00029041,2]
[385353914,1757790741955,-2033.09,0.00029041,2]
[385353915,1757790741964,-778.2,0.00029041,2]
[385353916,1757790741974,-980.63,0.00029041,2]
[385353917,1757790741983,-538.72,0.00029041,2]
[385353918,1757790741992,-599.03,0.00029041,2]
[385353919,1757790742002,-677.3,0.00029041,2]
[385353920,1757790742011,-1183.03,0.00029041,2]
[385353921,1757790742020,-722.19,0.00029041,2]
[385353922,1757790742029,-1015.48,0.00029041,2]
[385353923,1757790742039,-965.24,0.00029041,2]
[385353924,1757790742048,-400.0,0.00029041,2]
[385353925,1757790742058,-400.0,0.00029041,2]
[385353926,1757790742067,-653.28,0.00029041,2]
[385353927,1757790742077,-974.74,0.00029041,2]
[385353928,1757790742086,-400.0,0.00029041,2]
[385353929,1757790742095,-400.0,0.00029041,2]
[385353930,1757790742105,-532.11,0.00029041,2]
[385353931,1757790742114,-400.0,0.00029041,2]
[385353932,1757790742123,-741.23,0.00029041,2]
[385353933,1757790742133,-775.6,0.00029041,2]
[385353934,1757790742142,-400.0,0.00029041,2]
[385353935,1757790742152,-400.0,0.00029041,2]
[385353936,1757790742161,-1047.99,0.00029041,2]
[385353937,1757790742171,-867.54,0.00029041,2]
[385353938,1757790742180,-400.0,0.00029041,2]
[385353939,1757790742190,-367.87095246,0.00029041,2]
[385353940,1757790742199,-835.84,0.00029041,2]
[385353941,1757790742209,-603.59,0.00029041,2]
[385353942,1757790742219,-2266.8,0.00029041,2]
[385353943,1757790742229,-400.0,0.00029041,2]
[385353944,1757790742238,-526.24,0.00029041,2]
[385353945,1757790742247,-1243.58,0.00029041,2]
[385353946,1757790742257,-605.54,0.00029041,2]
[385353947,1757790742266,-502.15,0.00029041,2]
[385353948,1757790742275,-708.83,0.00029041,2]
[385353949,1757790742284,-495.47,0.00029041,2]
[385353950,1757790742294,-462.88,0.00029041,2]
[385353951,1757790742303,-858.84,0.00029041,2]
[385353952,1757790742313,-2089.21,0.00029041,2]
[385353953,1757790742322,-1484.39,0.00029041,2]
[385353954,1757790742331,-1139.82,0.00029041,2]
[385353955,1757790742342,-676.37,0.00029041,2]
[385353956,1757790742352,-920.38,0.00029041,2]
[385353957,1757790742362,-785.36,0.00029041,2]
[385353958,1757790742371,-396.17974571,0.00029041,2]
[385353959,1757790742381,-400.0,0.00029041,2]
[385353960,1757790742390,-612.46,0.00029041,2]
[385353961,1757790742400,-1042.18,0.00029041,2]
[385353962,1757790742410,-857.85,0.00029041,2]
[385353963,1757790742420,-400.0,0.00029041,2]
[385353964,1757790742430,-400.0,0.00029041,2]
[385353965,1757790742440,-400.0,0.00029041,2]
[385353966,1757790742450,-714.23,0.00029041,2]
[385353967,1757790742460,-894.39,0.00029041,2]
[385353968,1757790742471,-647.42,0.00029041,2]
[385353969,1757790742483,-2338.03,0.00029041,2]
[385353970,1757790742493,-513.3,0.00029041,2]
[385353971,1757790742502,-924.41,0.00029041,2]
[385353972,1757790742511,-841.74,0.00029041,2]
[385353973,1757790742521,-1469.88,0.00029041,2]
[385353974,1757790742531,-722.3,0.00029041,2]
[385353975,1757790742541,-415.27,0.00029041,2]
[385353976,1757790742550,-400.0,0.00029041,2]
[385353977,1757790742560,-1485.88,0.00029041,2]
[385353978,1757790742570,-767.19,0.00029041,2]
[385353979,1757790742579,-814.0,0.00029041,2]
[385353980,1757790742589,-400.0,0.00029041,2]
[385353981,1757790742598,-1229.51,0.00029041,2]
[385353982,1757790742607,-400.0,0.00029041,2]
[385353983,1757790742616,-844.21,0.00029041,2]
[385353984,1757790742625,-400.0,0.00029041,2]
[385353985,1757790742635,-400.0,0.00029041,2]
[385353986,1757790742645,-449.16,0.00029041,2]
[385353987,1757790742655,-865.66,0.00029041,2]
[385353988,1757790742664,-2265.68,0.00029041,2]
[385353989,1757790742674,-400.0,0.00029041,2]
[385353990,1757790742683,-572.0,0.00029041,2]
[385353991,1757790742693,-863.57,0.00029041,2]
[385353992,1757790742703,-2112.49,0.00029041,2]
[385353993,1757790742712,-1107.28,0.00029041,2]
[385353994,1757790742722,-510.21,0.00029041,2]
[385353995,1757790742732,-400.0,0.00029041,2]
[385353996,1757790742741,-400.0,0.00029041,2]
[385353997,1757790742751,-1170.47,0.00029041,2]
[385353998,1757790742760,-1028.51,0.00029041,2]
[385353999,1757790742769,-841.3,0.00029041,2]
[385354000,1757790742779,-856.96,0.00029041,2]
[385354001,1757790742788,-400.0,0.00029041,2]
[385354002,1757790742798,-906.61,0.00029041,2]
[385354003,1757790742808,-1458.58,0.00029041,2]
[385354004,1757790742818,-701.85,0.00029041,2]
[385354005,1757790742828,-4256.1,0.00029041,2]
[385354006,1757790742837,-400.0,0.00029041,2]
[385354007,1757790742847,-525.9265602,0.00029041,2]
[385354008,1757790742857,-1006.96,0.00029041,2]
[385354009,1757790742867,-728.15,0.00029041,2]
[385354010,1757790742876,-400.0,0.00029041,2]
[385354011,1757790742885,-925.96,0.00029041,2]
[385354012,1757790742894,-414.17092123,0.00029041,2]
[385354013,1757790742904,-400.0,0.00029041,2]
[385354014,1757790742914,-445.69,0.00029041,2]
[385354015,1757790742923,-1198.57,0.00029041,2]
[385354016,1757790742933,-1974.67,0.00029041,2]
[385354017,1757790742943,-2857.69,0.00029041,2]
[385354018,1757790742952,-400.0,0.00029041,2]
[385354019,1757790742962,-847.13,0.00029041,2]
[385354020,1757790742971,-400.0,0.00029041,2]
[385354021,1757790742981,-2990.98,0.00029041,2]
[385354022,1757790742990,-400.0,0.00029041,2]
[385354023,1757790742999,-400.0,0.00029041,2]
[385354024,1757790743009,-834.58,0.00029041,2]
[385354025,1757790743020,-2111.33,0.00029041,2]
[385354026,1757790743031,-2302.98,0.00029041,2]
[385354027,1757790743040,-400.0,0.00029041,2]
[385354028,1757790743050,-1747.56,0.00029041,2]
[385354029,1757790743060,-466.82,0.00029041,2]
[385354030,1757790743070,-2233.25,0.00029041,2]
[385354031,1757790743079,-1255.2,0.00029041,2]
[385354032,1757790743089,-400.0,0.00029041,2]
[385354033,1757790743098,-400.0,0.00029041,2]
[385354034,1757790743107,-694.91,0.00029041,2]
[385354035,1757790743117,-400.0,0.00029041,2]
[385354036,1757790743126,-400.0,0.00029041,2]
[385354037,1757790743135,-1143.85,0.00029041,2]
[385354038,1757790743145,-400.0,0.00029041,2]
[385354039,1757790743154,-1963.87,0.00029041,2]
[385354040,1757790743165,-400.0,0.00029041,2]
[385354041,1757790743174,-400.0,0.00029041,2]
[385354042,1757790743184,-807.66,0.00029041,2]
[385354043,1757790743193,-2263.39,0.00029041,2]
[385354044,1757790743203,-400.0,0.00029041,2]
[385354045,1757790743213,-400.0,0.00029041,2]
[385354046,1757790743223,-927.88,0.00029041,2]
[385354047,1757790743232,-400.0,0.00029041,2]
[385354048,1757790743242,-952.59,0.00029041,2]
[385354049,1757790743252,-944.31,0.00029041,2]
[385354050,1757790743262,-931.48,0.00029041,2]
[385354051,1757790743271,-400.0,0.00029041,2]
[385354052,1757790743280,-669.04,0.00029041,2]
[385354053,1757790743290,-1333.33,0.00029041,2]
[385354054,1757790743299,-424.65606101,0.00029041,2]
[385354055,1757790743308,-400.0,0.00029041,2]
[385354056,1757790743318,-1798.63,0.00029041,2]
[385354057,1757790743327,-711.99,0.00029041,2]
[385354058,1757790743338,-1079.08,0.00029041,2]
[385354059,1757790743347,-1030.24,0.00029041,2]
[385354060,1757790743357,-568.52,0.00029041,2]
[385354061,1757790743367,-400.0,0.00029041,2]
[385354062,1757790743376,-400.0,0.00029041,2]
[385354063,1757790743386,-977.53,0.00029041,2]
[385354064,1757790743396,-400.0,0.00029041,2]
[385354065,1757790743406,-923.82,0.00029041,2]
[385354066,1757790743416,-1374.51,0.00029041,2]
[385354067,1757790743426,-400.0,0.00029041,2]
[385354068,1757790743436,-707.41,0.00029041,2]
[385354069,1757790743446,-539.76,0.00029041,2]
[385354070,1757790743455,-400.0,0.00029041,2]
[385354071,1757790743465,-532.15,0.00029041,2]
[385354072,1757790743477,-1021.66,0.00029041,2]
[385354073,1757790743486,-1683.27,0.00029041,2]
[385354074,1757790743496,-796.82,0.00029041,2]
[385354075,1757790743505,-786.29,0.00029041,2]
[385354076,1757790743515,-400.0,0.00029041,2]
[385354077,1757790743524,-923.85,0.00029041,2]
[385354078,1757790743534,-585.84,0.00029041,2]
[385354079,1757790743544,-1254.84,0.00029041,2]
[385354080,1757790743555,-400.0,0.00029041,2]
[385354081,1757790743564,-1026.54,0.00029041,2]
[385354082,1757790743574,-492.79,0.00029041,2]
[385354083,1757790743584,-2328.06,0.00029041,2]
[385354084,1757790743593,-1854.12,0.00029041,2]
[385354085,1757790743603,-400.0,0.00029041,2]
[385354086,1757790743612,-3059.22,0.00029041,2]
[385354087,1757790743621,-1159.49,0.00029041,2]
[385354088,1757790743631,-1000.0,0.00029041,2]
[385354089,1757790743646,-618.58,0.00029041,2]
[385354090,1757790743665,-400.0,0.00029041,2]
[385354091,1757790743675,-1262.94,0.00029041,2]
[385354092,1757790743684,-400.0,0.00029041,2]
[385354093,1757790743694,-400.0,0.00029041,2]
[385354094,1757790743703,-666.27,0.00029041,2]
[385354095,1757790743712,-400.0,0.00029041,2]
[385354096,1757790743722,-1602.35,0.00029041,2]
[385354097,1757790743731,-2778.98,0.00029041,2]
[385354098,1757790743741,-400.0,0.00029041,2]
[385354099,1757790743750,-438.09,0.00029041,2]
[385354100,1757790743759,-344.99,0.00029041,2]
[385354101,1757790743769,-312.96211392,0.00029041,2]
[385354102,1757790743780,-400.0,0.00029041,2]
[385354103,1757790743791,-523.76,0.00029041,2]
[385354104,1757790743802,-400.0,0.00029041,2]
[385354105,1757790743812,-734.11,0.00029041,2]
[385354106,1757790743823,-634.16,0.00029041,2]
[385354107,1757790743833,-887.05,0.00029041,2]
[385354108,1757790743842,-400.0,0.00029041,2]
[385354109,1757790743852,-1288.99,0.00029041,2]
[385354110,1757790743861,-942.86,0.00029041,2]
[385354111,1757790743871,-400.0,0.00029041,2]
[385354112,1757790743880,-400.0,0.00029041,2]
[385354113,1757790743890,-2431.97,0.00029041,2]
[385354114,1757790743899,-1697.7,0.00029041,2]
[385354115,1757790743911,-1448.36,0.00029041,2]
[385354116,1757790743920,-488.5,0.00029041,2]
[385354117,1757790743930,-655.13,0.00029041,2]
[385354118,1757790743939,-693.6,0.00029041,2]
[385354119,1757790743948,-985.78,0.00029041,2]
[385354120,1757790743957,-400.0,0.00029041,2]
[385354121,1757790743967,-914.74,0.00029041,2]
[385354122,1757790743976,-400.0,0.00029041,2]
[385354123,1757790743985,-3119.56,0.00029041,2]
[385354124,1757790743995,-1199.53,0.00029041,2]
[385354125,1757790744004,-400.0,0.00029041,2]
[385354126,1757790744014,-869.51,0.00029041,2]
[385354127,1757790744025,-492.5,0.00029041,2]
[385354128,1757790744034,-400.0,0.00029041,2]
[385354129,1757790744043,-683.66,0.00029041,2]
[385354130,1757790744054,-1155.29,0.00029041,2]
[385354131,1757790744064,-1010.79,0.00029041,2]
[385354132,1757790744075,-655.9,0.00029041,2]
[385354133,1757790744085,-400.0,0.00029041,2]
[385354134,1757790744096,-450.64,0.00029041,2]
[385354135,1757790744107,-1130.65,0.00029041,2]
[385354136,1757790744118,-400.0,0.00029041,2]
[385354137,1757790744128,-1727.97,0.00029041,2]
[385354138,1757790744140,-536.28,0.00029041,2]
[385354139,1757790744150,-920.05,0.00029041,2]
[385354140,1757790744159,-971.87,0.00029041,2]
[385354141,1757790744168,-1049.74,0.00029041,2]
[385354142,1757790744178,-400.0,0.00029041,2]
[385354143,1757790744187,-807.81,0.00029041,2]
[385354144,1757790744197,-1540.01,0.00029041,2]
[385354145,1757790744207,-1074.98,0.00029041,2]
[385354146,1757790744218,-767.61,0.00029041,2]
[385354147,1757790744227,-400.0,0.00029041,2]
[385354148,1757790744237,-400.0,0.00029041,2]
[385354149,1757790744246,-400.0,0.00029041,2]
[385354150,1757790744255,-400.0,0.00029041,2]
[385354151,1757790744265,-400.0,0.00029041,2]
[385354152,1757790744369,-721.19,0.00029041,2]
[385354153,1757790744378,-843.61,0.00029041,2]
[385354154,1757790744388,-798.34,0.00029041,2]
[385354155,1757790744398,-1380.97,0.00029041,2]
[385354156,1757790744407,-400.0,0.00029041,2]
[385354157,1757790744418,-1507.18,0.00029041,2]
[385354158,1757790744427,-736.94,0.00029041,2]
[385354159,1757790744438,-8779.55,0.00029041,2]
[385354160,1757790744448,-400.0,0.00029041,2]
[385354161,1757790744458,-400.0,0.00029041,2]
[385354162,1757790744467,-594.63,0.00029041,2]
[385354163,1757790744480,-1003.9,0.00029041,2]
[385354164,1757790744489,-506.79,0.00029041,2]
[385354165,1757790744499,-729.26,0.00029041,2]
[385354166,1757790744508,-2622.41,0.00029041,2]
[385354167,1757790744518,-666.01,0.00029041,2]
[385354168,1757790744527,-649.71,0.00029041,2]
[385354169,1757790744537,-813.26,0.00029041,2]
[385354170,1757790744547,-752.66,0.00029041,2]
[385354171,1757790744557,-500.0,0.00029041,2]
[385354172,1757790744567,-745.71,0.00029041,2]
[385354173,1757790744576,-1034.54,0.00029041,2]
[385354174,1757790744586,-851.12,0.00029041,2]
[385354175,1757790744596,-436.15,0.00029041,2]
[385354176,1757790744605,-931.13,0.00029041,2]
[385354177,1757790744615,-990.05,0.00029041,2]
[385354178,1757790744624,-955.65,0.00029041,2]
[385354179,1757790744634,-2504.84,0.00029041,2]
[385354180,1757790744643,-367.42542445,0.00029041,2]
[385354181,1757790744652,-400.0,0.00029041,2]
[385354182,1757790744662,-615.48,0.00029041,2]
[385354183,1757790744671,-400.0,0.00029041,2]
[385354184,1757790744680,-500.0,0.00029143,2]
[385354185,1757790744690,-500.0,0.00029143,2]
[385354186,1757790744699,-262.29,0.00029201,2]
[385354187,1757790744708,-150.0,0.0002922,2]
[385354188,1757790744717,-150.0,0.0002922,2]
[385354189,1757790744726,-174.72,0.0002922,2]
[385354190,1757790744735,-150.0,0.0002922,2]
[385354191,1757790744744,-162.29,0.0002922,2]
[385354192,1757790744753,-150.0,0.0002922,2]
[385354193,1757790744763,-174.72,0.0002922,2]
[385354194,1757790744772,-857.06,0.0002922,2]
[385354195,1757790744781,-166.97,0.0002922,2]
[385354196,1757790744791,-174.72,0.0002922,2]
[385354197,1757790744802,-166.97,0.0002922,2]
[385354198,1757790744813,-408.04,0.0002922,2]
[385354199,1757790744823,-555.53,0.0002922,2]
[385354200,1757790744832,-174.72,0.0002922,2]
[385354201,1757790744842,-542.58,0.0002922,2]
[385354202,1757790744851,-1190.97,0.0002922,2]
[385354203,1757790744861,-166.97,0.0002922,2]
[385354204,1757790744871,-1191.32,0.0002922,2]
[385354205,1757790744883,-542.58,0.0002922,2]
[385354206,1757790744894,-214.74,0.0002922,2]
[385354207,1757790744904,-166.97,0.0002922,2]
[385354208,1757790744914,-542.58,0.0002922,2]
[385354209,1757790744923,-166.97,0.0002922,2]
[385354210,1757790744933,-174.72,0.0002922,2]
[385354211,1757790744943,-542.58,0.0002922,2]
[385354212,1757790744953,-1191.32,0.0002922,2]
[385354213,1757790744963,-166.97,0.0002922,2]
[385354214,1757790744973,-1191.32,0.0002922,2]
[385354215,1757790744983,-173.7,0.0002922,2]
[385354216,1757790744994,-1394.36,0.0002922,2]
[385354217,1757790745005,-166.97,0.0002922,2]
[385354218,1757790745015,-1191.32,0.0002922,2]
[385354219,1757790745026,-166.97,0.0002922,2]
[385354220,1757790745035,-166.01,0.0002922,2]
[385354221,1757790745045,-2365.09,0.0002922,2]
[385354222,1757790745054,-1631.03118485,0.0002927,2]
[385354223,1757790745064,-318.17460608,0.00029274,2]
[385354224,1757790745073,-1000.0,0.00029274,2]
[385354225,1757790745083,-403.48,0.00029315,2]
[385354226,1757790745092,-400.0,0.00029315,2]
[385354227,1757790745101,-400.0,0.00029315,2]
[385354228,1757790745111,-699.06,0.00029315,2]
[385354229,1757790745120,-888.74,0.00029315,2]
[385354230,1757790745129,-1067.33,0.00029315,2]
[385354231,1757790745138,-400.0,0.00029315,2]
[385354232,1757790745148,-494.9,0.00029315,2]
[385354233,1757790745159,-400.0,0.00029315,2]
[385354234,1757790745169,-1011.1,0.00029315,2]
[385354235,1757790745180,-422.64038,0.00029315,2]
[385354236,1757790745190,-241.62224478,0.00029315,2]
[385354237,1757790745200,-400.0,0.00029315,2]
[385354238,1757790745209,-333.40658194,0.00029315,2]
[385354239,1757790745218,-411.04,0.00029315,2]
[385354240,1757790745227,-400.0,0.00029315,2]
[385354241,1757790745236,-400.0,0.00029315,2]
[385354242,1757790745245,-453.83608766,0.00029315,2]
[385354243,1757790745257,-400.0,0.00029315,2]
[385354244,1757790745266,-400.0,0.00029315,2]
[385354245,1757790745275,-223.15695694,0.00029315,2]
[385354246,1757790745283,-400.0,0.00029315,2]
[385354247,1757790745293,-400.0,0.00029315,2]
[385354248,1757790745302,-436.55,0.00029315,2]
[385354249,1757790745311,-415.46,0.00029315,2]
[385354250,1757790745320,-1222.47,0.00029315,2]
[385354251,1757790745329,-400.0,0.00029315,2]
[385354252,1757790745339,-400.0,0.00029315,2]
[385354253,1757790745348,-622.37,0.00029315,2]
[385354254,1757790745357,-751.49,0.00029315,2]
[385354255,1757790745366,-500.0,0.00029315,2]
[385354256,1757790745375,-512.06,0.00029315,2]
[385354257,1757790745384,-400.0,0.00029315,2]
[385354258,1757790745393,-406.38899783,0.00029315,2]
[385354259,1757790745403,-400.0,0.00029315,2]
[385354260,1757790745413,-400.0,0.00029315,2]
[385354261,1757790745422,-400.0,0.00029315,2]
[385354262,1757790745431,-516.89,0.00029315,2]
[385354263,1757790745441,-400.0,0.00029315,2]
[385354264,1757790745453,-572.28,0.00029315,2]
[385354265,1757790745462,-400.0,0.00029315,2]
[385354266,1757790745473,-400.0,0.00029315,2]
[385354267,1757790745484,-400.0,0.00029315,2]
[385354268,1757790745494,-400.0,0.00029315,2]
[385354269,1757790745505,-400.0,0.00029315,2]
[385354270,1757790745515,-405.34,0.00029315,2]
[385354271,1757790745526,-892.3,0.00029315,2]
[385354272,1757790745536,-400.0,0.00029315,2]
[385354273,1757790745545,-400.0,0.00029315,2]
[385354274,1757790745554,-2090.35,0.00029315,2]
[385354275,1757790745564,-450.18006406,0.00029315,2]
[385354276,1757790745574,-445.77,0.00029315,2]
[385354277,1757790745583,-849.51,0.00029315,2]
[385354278,1757790745592,-281.48036846,0.00029315,2]
[385354279,1757790745601,-400.0,0.00029315,2]
[385354280,1757790745610,-400.0,0.00029315,2]
[385354281,1757790745619,-764.33,0.00029315,2]
[385354282,1757790745628,-400.0,0.00029315,2]
[385354283,1757790745638,-812.38,0.00029315,2]
[385354284,1757790745647,-579.38,0.00029315,2]
[385354285,1757790745656,-400.0,0.00029315,2]
[385354286,1757790745666,-400.0,0.00029315,2]
[385354287,1757790745675,-534.50033272,0.00029315,2]
[385354288,1757790745684,-400.0,0.00029315,2]
[385354289,1757790745693,-400.0,0.00029315,2]
[385354290,1757790745702,-400.0,0.00029315,2]
[385354291,1757790745712,-400.0,0.00029315,2]
[385354292,1757790745721,-400.0,0.00029315,2]
[385354293,1757790745730,-400.0,0.00029315,2]
[385354294,1757790745739,-400.0,0.00029315,2]
[385354295,1757790745748,-400.0,0.00029315,2]
[385354296,1757790745757,-400.0,0.00029315,2]
[385354297,1757790745766,-400.0,0.00029315,2]
[385354298,1757790745775,-1141.14,0.00029315,2]
[385354299,1757790745784,-593.32,0.00029315,2]
[385354300,1757790745794,-400.0,0.00029315,2]
[385354301,1757790745804,-762.02,0.00029315,2]
[385354302,1757790745813,-400.0,0.00029315,2]
[385354303,1757790745823,-400.0,0.00029315,2]
[385354304,1757790745834,-633.2,0.00029315,2]
[385354305,1757790745843,-400.0,0.00029315,2]
[385354306,1757790745853,-400.0,0.00029315,2]
[385354307,1757790745863,-515.8507041,0.00029315,2]
[385354308,1757790745872,-400.0,0.00029315,2]
[385354309,1757790745881,-548.72,0.00029315,2]
[385354310,1757790745890,-400.0,0.00029315,2]
[385354311,1757790745899,-400.0,0.00029315,2]
[385354312,1757790745908,-400.0,0.00029315,2]
[385354313,1757790745917,-400.0,0.00029315,2]
[385354314,1757790745926,-412.83139768,0.00029315,2]
[385354315,1757790745935,-411.96,0.00029315,2]
[385354316,1757790745944,-653.34,0.00029315,2]
[385354317,1757790745954,-400.0,0.00029315,2]
[385354318,1757790745963,-400.0,0.00029315,2]
[385354319,1757790745972,-253.12575713,0.00029315,2]
[385354320,1757790745981,-891.73,0.00029315,2]
[385354321,1757790745991,-253.12575713,0.00029315,2]
[385354322,1757790746000,-1354.32,0.00029315,2]
[385354323,1757790746009,-598.23,0.00029315,2]
[385354324,1757790746018,-518.98,0.00029315,2]
[385354325,1757790746028,-925.24,0.00029315,2]
[385354326,1757790746037,-400.0,0.00029315,2]
[385354327,1757790746047,-400.0,0.00029315,2]
[385354328,1757790746056,-722.44,0.00029315,2]
[385354329,1757790746066,-400.0,0.00029315,2]
[385354330,1757790746075,-400.0,0.00029315,2]
[385354331,1757790746084,-400.0,0.00029315,2]
[385354332,1757790746093,-506.66,0.00029315,2]
[385354333,1757790746103,-400.0,0.00029315,2]
[385354334,1757790746111,-1909.11,0.00029315,2]
[385354335,1757790746121,-400.0,0.00029315,2]
[385354336,1757790746130,-400.0,0.00029315,2]
[385354337,1757790746138,-886.75,0.00029315,2]
[385354338,1757790746147,-400.0,0.00029315,2]
[385354339,1757790746156,-400.0,0.00029315,2]
[385354340,1757790746166,-400.0,0.00029315,2]
[385354341,1757790746175,-400.0,0.00029315,2]
[385354342,1757790746185,-400.0,0.00029315,2]
[385354343,1757790746194,-1138.1,0.00029315,2]
[385354344,1757790746205,-400.0,0.00029315,2]
[385354345,1757790746214,-400.0,0.00029315,2]
[385354346,1757790746223,-400.0,0.00029315,2]
[385354347,1757790746232,-400.0,0.00029315,2]
[385354348,1757790746241,-400.0,0.00029315,2]
[385354349,1757790746250,-400.0,0.00029315,2]
[385354350,1757790746259,-576.48,0.00029315,2]
[385354351,1757790746269,-400.0,0.00029315,2]
[385354352,1757790746278,-400.0,0.00029315,2]
[385354353,1757790746287,-712.7,0.00029315,2]
[385354354,1757790746297,-512.31311703,0.00029315,2]
[385354355,1757790746306,-400.0,0.00029315,2]
[385354356,1757790746315,-400.0,0.00029315,2]
[385354357,1757790746324,-400.0,0.00029315,2]
[385354358,1757790746333,-400.0,0.00029315,2]
[385354359,1757790746343,-214.90173209,0.00029315,2]
[385354360,1757790746353,-2782.51,0.00029315,2]
[385354361,1757790746362,-400.0,0.00029315,2]
[385354362,1757790746371,-400.0,0.00029315,2]
[385354363,1757790746381,-749.03,0.00029315,2]
[385354364,1757790746390,-476.93,0.00029315,2]
[385354365,1757790746400,-400.0,0.00029315,2]
[385354366,1757790746410,-400.0,0.00029315,2]
[385354367,1757790746420,-778.01,0.00029315,2]
[385354368,1757790746430,-652.17,0.00029315,2]
[385354369,1757790746439,-207.65183502,0.00029315,2]
[385354370,1757790746449,-1095.32,0.00029315,2]
[385354371,1757790746458,-400.0,0.00029315,2]
[385354372,1757790746467,-450.34,0.00029315,2]
[385354373,1757790746480,-623.72,0.00029315,2]
[385354374,1757790746489,-400.0,0.00029315,2]
[385354375,1757790746498,-522.52,0.00029315,2]
[385354376,1757790746508,-1025.68,0.00029315,2]
[385354377,1757790746517,-400.0,0.00029315,2]
[385354378,1757790746527,-400.0,0.00029315,2]
[385354379,1757790746536,-1547.47,0.00029315,2]
[385354380,1757790746546,-400.0,0.00029315,2]
[385354381,1757790746555,-400.0,0.00029315,2]
[385354382,1757790746565,-400.0,0.00029315,2]
[385354383,1757790746574,-452.08,0.00029315,2]
[385354384,1757790746583,-400.0,0.00029315,2]
[385354385,1757790746593,-954.04,0.00029315,2]
[385354386,1757790746602,-972.47,0.00029315,2]
[385354387,1757790746611,-400.0,0.00029315,2]
[385354388,1757790746620,-440.6,0.00029315,2]